{"text_format":"1","workbook":"xlsx","n_sheets":17,"sheets":["General data","XBRL Errors","Index","Show","Hierarchies","T0","T1A","T1B","T1C","T1D","T1E","T2A","T2C","T2E","T2G","T3A","T3B"],"not_rendered":{"charts":0,"images":3,"macros":1,"external_links":0,"defined_names":38,"comments":0,"pivot_tables":0},"unopened":[],"bounds":{"document_bytes":16777216,"sheet_cells":100000,"rows_first":2000,"rows_last":500,"rows_between":2000,"halvings":0,"cell_chars":16384,"cell_head_chars":4096},"cells_cut":0,"cells_raw":0,"read":"whole","date_system":"1900"}

{"sheet":"General data","index":0,"n_rows":247,"n_cols":23,"rows_kept":247,"cut":false,"hidden":false,"merged":[[0,6,2,6],[3,0,5,9]]}
[null,null,null,null,null,null,null,"Version:",null,"2.0.0.1",null,null,null,null,null,null,"Not applicable/All geographical areas","http://standards.iso.org/iso/17442","Verzekeraars nationale staten, jaarlijkse rapportage","VNS-JR","01","EUR","NL VNS 2.0.0"]
[null,null,null,null,null,null,null,null,null,null,null,null,null,null,null,null,"AFGHANISTAN","http://standards.iso.org/iso/17442",null,null,"18","AED"]
[null,null,null,null,null,null,null," ",null,null,null,null,null,null,null,null,"ALBANIA","http://standards.iso.org/iso/17442",null,null,"19","AFN"]
[null,null,null,null,null,null,null,null,null,null,null,null,null,null,null,null,"ALGERIA","http://standards.iso.org/iso/17442",null,null,"20","ALL"]
[null,null,null,null,null,null,null,null,null,null,null,null,null,null,null,null,"AMERICAN SAMOA","http://standards.iso.org/iso/17442",null,null,"All","AMD"]
[null,null,null,null,null,null,null,null,null,null,null,null,null,null,null,null,"ANDORRA","http://standards.iso.org/iso/17442",null,null,"All","ANG"]
[null,null,null,null,null,null,null,null,null,null,null,null,null,null,null,null,"ANGOLA","http://standards.iso.org/iso/17442",null,null,null,"AOA"]
[null,"General Data",null,null,null,null,null,null,null,null,null,"/General data label{B}","/General data value{E}",null,null,null,"ANGUILLA","http://standards.iso.org/iso/17442",null,null,null,"ARS"]
[null,null,null,null,null,null,null,null,null,null,null,null,null,null,null,null,"ANTARCTICA","http://standards.iso.org/iso/17442",null,null,null,"AUD"]
["*","Identifier",":","LEGALIDENTIFIER20POS",{"$f":"\"\"&D10","v":"LEGALIDENTIFIER20POS"},{"$f":"IF(D10=\"\",1,0)","v":0},null,null,null,null,null,null,null,null,null,null,"ANTIGUA AND BARBUDA","http://standards.iso.org/iso/17442",null,null,null,"AWG"]
[null,null,null,null,null,null,null,null,null,null,null,null,null,null,null,null,"ARGENTINA","http://standards.iso.org/iso/17442",null,null,null,"AZN"]
["*","Period start date",":","2020-01-01",{"$f":"D12","v":"2020-01-01"},{"$f":"IF(D12=\"\",1,0)","v":0},null,null,null,null,null,null,null,null,null,null,"ARMENIA","http://standards.iso.org/iso/17442",null,null,null,"BAM"]
[null,null,null,null,null,null,null,null,null,null,null,null,null,null,null,null,"ARUBA","http://standards.iso.org/iso/17442",null,null,null,"BBD"]
["*","Period end date",":","2020-12-31",{"$f":"D14","v":"2020-12-31"},{"$f":"IF(D14=\"\",1,0)","v":0},null,null,null,null,null,null,null,null,null,null,"AUSTRALIA","http://standards.iso.org/iso/17442",null,null,null,"BDT"]
[null,null,null,null,null,null,null,null,null,null,null,null,null,null,null,null,"AUSTRIA","http://standards.iso.org/iso/17442",null,null,null,"BGN"]
[null,"Country",":","Not applicable/All geographical areas",null,null,null,null,null,null,null,null,null,null,null,null,"AZERBAIJAN","http://standards.iso.org/iso/17442",null,null,null,"BHD"]
[null,null,null,null,null,null,null,null,null,null,null,null,null,null,null,null,"BAHAMAS","http://standards.iso.org/iso/17442",null,null,null,"BIF"]
["*","Filing Currency",":","EUR",{"$f":"\"\"&D18","v":"EUR"},{"$f":"IF(D18=\"\",1,0)","v":0},null,null,null,null,null,null,null,null,null,null,"BAHRAIN","http://standards.iso.org/iso/17442",null,null,null,"BMD"]
[null,null,null,null,null,null,null,null,null,null,null,null,null,null,null,null,"BANGLADESH","http://standards.iso.org/iso/17442",null,null,null,"BND"]
["*","Taxonomy",":","NL VNS 2.0.0",null,{"$f":"IF(D20=\"\",1,0)","v":0},null,null,null,null,null,null,null,null,null,null,"BARBADOS","http://standards.iso.org/iso/17442",null,null,null,"BOB"]
[null,null,null,null,null,null,null,null,null,null,null,null,null,null,null,null,"BELARUS","http://standards.iso.org/iso/17442",null,null,null,"BRL"]
["*","Module",":","Verzekeraars nationale staten, jaarlijkse rapportage",{"$f":"IFERROR(VLOOKUP(D22,S:T,2,FALSE),\"\")","v":"VNS-JR"},{"$f":"IF(D22=\"\",1,0)","v":0},null,null,null,null,null,null,null,null,null,null,"BELGIUM","http://www.swift.com",null,null,null,"BSD"]
[null,null,null,null,null,null,null,null,null,null,null,null,null,null,null,null,"BELIZE","http://standards.iso.org/iso/17442",null,null,null,"BTN"]
[null,null,null,null,null,null,null,null,null,null,null,null,null,null,null,null,"BENIN","http://standards.iso.org/iso/17442",null,null,null,"BWP"]
[null,"Advanced Requirements",null,null,null,null,null,null,null,null,null,null,null,null,null,null,"BERMUDA","http://standards.iso.org/iso/17442",null,null,null,"BYN"]
[null,null,null,null,null,null,null,null,null,null,null,null,null,null,null,null,"BHUTAN","http://standards.iso.org/iso/17442",null,null,null,"BZD"]
[null,"Identifier scheme",":",{"$f":"IFERROR(VLOOKUP(D16,Q:R,2,FALSE),R1)","v":"http://standards.iso.org/iso/17442"},{"$f":"D27","v":"http://standards.iso.org/iso/17442"},null,null,null,null,null,null,null,null,null,null,null,"BOLIVIA, PLURINATIONAL STATE OF","http://standards.iso.org/iso/17442",null,null,null,"CAD"]
[null,null,null,null,null,null,null,null,null,null,null,null,null,null,null,null,"BRAZIL","http://standards.iso.org/iso/17442",null,null,null,"COP"]
[null,"Monetary decimals",":",null,null,null,null,null,null,null,null,null,null,null,null,null,"BRITISH INDIAN OCEAN TERRITORY","http://standards.iso.org/iso/17442",null,null,null,"CRC"]
[null,null,null,null,null,null,null,null,null,null,null,null,null,null,null,null,"BRUNEI DARUSSALAM","http://standards.iso.org/iso/17442",null,null,null,"CUC"]
[null,"Monetary precision",":",-3,null,{"$f":" 0.5 * 10^(-1 * PP_MonetaryPrecision)","v":500},null,null,null,null,null,null,null,null,null,null,"BULGARIA","http://standards.iso.org/iso/17442",null,null,null,"CUP"]
[null,null,null,null,null,null,null,null,null,null,null,null,null,null,null,null,"BURKINA FASO","http://standards.iso.org/iso/17442",null,null,null,"CVE"]
[null,"Pure decimals",":",4,null,{"$f":" 0.5 * 10^(-1 * PP_DecimalPrecision)","v":5.0000000000000002E-5},null,null,null,null,null,null,null,null,null,null,"BURUNDI","http://standards.iso.org/iso/17442",null,null,null,"CZK"]
[null,null,null,null,null,null,null,null,null,null,null,null,null,null,null,null,"CAMBODIA","http://standards.iso.org/iso/17442",null,null,null,"DJF"]
[null,"Pure precision",":",4,null,null,null,"#XBRL made simple!",null,null,null,null,null,null,null,null,"CAMEROON","http://standards.iso.org/iso/17442",null,null,null,"DKK"]
[null,null,null,null,null,null,null,null,null,null,null,null,null,null,null,null,"CANADA","http://standards.iso.org/iso/17442",null,null,null,"DOP"]
[null,"Concatenate Errors",":",false,null,null,null,null,null,null,null,null,null,null,null,null,"CAPE VERDE","http://standards.iso.org/iso/17442",null,null,null,"DZD"]
[null,"Additional Requirements (Country specific)",null,null,null,null,null,null,null,null,null,null,null,null,null,null,"CAYMAN ISLANDS","http://standards.iso.org/iso/17442",null,null,null,"EGP"]
["BELGIUM",null,null,null,null,null,null,null,null,null,null,null,null,null,null,null,"CENTRAL AFRICAN REPUBLIC","http://standards.iso.org/iso/17442",null,null,null,"ERN"]
["BELGIUM","Post Parsing features",":",null,null,{"$f":"IF(AND(A40=PP_Country,D40=\"\"),1,0)","v":0},null,null,null,null,null,null,null,null,null,null,"CHAD","http://standards.iso.org/iso/17442",null,null,null,"ETB"]
["BELGIUM",null,null,null,null,null,null,null,null,null,null,null,null,null,null,null,"CHILE","http://standards.iso.org/iso/17442",null,null,null,"EUR"]
["BELGIUM","Reporter e-mail",":",null,null,null,null,null,null,null,null,null,null,null,null,null,"CHINA","http://standards.iso.org/iso/17442",null,null,null,"FJD"]
["BELGIUM",null,null,null,null,null,null,null,null,null,null,null,null,null,null,null,"CHRISTMAS ISLAND","http://standards.iso.org/iso/17442",null,null,null,"FKP"]
["BELGIUM","Declarer Type",":",null,{"$f":"\"\"&D44","v":""},{"$f":"IF(AND(A44=PP_Country,D44=\"\"),1,0)","v":0},null,null,null,null,null,null,null,null,null,null,"COCOS (KEELING) ISLANDS","http://standards.iso.org/iso/17442",null,null,null,"GBP"]
["BELGIUM",null,null,null,null,null,null,null,null,null,null,null,null,null,null,null,"COLOMBIA","http://standards.iso.org/iso/17442",null,null,null,"GEL"]
["BELGIUM","Domain",":",null,{"$f":"\"\"&D46","v":""},{"$f":"IF(AND(A46=PP_Country,D46=\"\"),1,0)","v":0},null,null,null,null,null,null,null,null,null,null,"COMOROS","http://standards.iso.org/iso/17442",null,null,null,"GGP"]
["BELGIUM",null,null,null,null,null,null,null,null,null,null,null,null,null,null,null,"CONGO","http://standards.iso.org/iso/17442",null,null,null,"GHS"]
[null,"ParsePort-specific parameters:",null,"SII_",null,null,null,null,null,null,null,null,null,null,null,null,"CONGO, THE DEMOCRATIC REPUBLIC OF THE","http://standards.iso.org/iso/17442",null,null,null,"GIP"]
[null,"Compress contexts",null,true,null,null,null,null,null,null,null,null,null,null,null,null,"COOK ISLANDS","http://standards.iso.org/iso/17442",null,null,null,"GMD"]
[null,"Language",null,"EN",null,null,null,null,null,null,null,null,null,null,null,null,"COSTA RICA","http://standards.iso.org/iso/17442",null,null,null,"GNF"]
[null,"Debug mode",null,false,null,null,null,null,null,null,null,null,null,null,null,null,"CÔTE D'IVOIRE","http://standards.iso.org/iso/17442",null,null,null,"GTQ"]
[null,"LookupValue fallback",null,false,null,null,null,null,null,null,null,null,null,null,null,null,"CROATIA","http://standards.iso.org/iso/17442",null,null,null,"GYD"]
[null,null,null,null,null,null,null,null,null,null,null,"//General data label{B}","//General data value{E}",null,null,null,"CUBA","http://standards.iso.org/iso/17442",null,null,null,"HKD"]
["BELGIUM",null,null,null,null,null,null,null,null,null,null,null,null,null,null,null,"CURAÇAO","http://standards.iso.org/iso/17442",null,null,null,"HNL"]
["BELGIUM",null,null,null,null,null,null,null,null,null,null,null,null,null,null,null,"CYPRUS","http://standards.iso.org/iso/17442",null,null,null,"HRK"]
[null,null,null,null,null,null,null,null,null,null,null,null,null,null,null,null,"CZECH REPUBLIC","http://standards.iso.org/iso/17442",null,null,null,"HTG"]
[null,null,null,null,null,null,null,null,null,null,null,null,null,null,null,null,"DENMARK","http://standards.iso.org/iso/17442",null,null,null,"HUF"]
[null,null,null,null,null,null,null,null,null,null,null,null,null,null,null,null,"DJIBOUTI","http://standards.iso.org/iso/17442",null,null,null,"IDR"]
[null,null,null,null,null,null,null,null,null,null,null,null,null,null,null,null,"DOMINICA","http://standards.iso.org/iso/17442",null,null,null,"ILS"]
[null,null,null,null,null,null,null,null,null,null,null,null,null,null,null,null,"DOMINICAN REPUBLIC","http://standards.iso.org/iso/17442",null,null,null,"IMP"]
[null,null,null,null,null,null,null,null,null,null,null,null,null,null,null,null,"ECUADOR","http://standards.iso.org/iso/17442",null,null,null,"INR"]
[null,null,null,null,null,null,null,null,null,null,null,null,null,null,null,null,"EGYPT","http://standards.iso.org/iso/17442",null,null,null,"IQD"]
[null,null,null,null,null,null,null,null,null,null,null,null,null,null,null,null,"EL SALVADOR","http://standards.iso.org/iso/17442",null,null,null,"IRR"]
[null,null,null,null,null,null,null,null,null,null,null,null,null,null,null,null,"EQUATORIAL GUINEA","http://standards.iso.org/iso/17442",null,null,null,"ISK"]
[null,null,null,null,null,null,null,null,null,null,null,null,null,null,null,null,"ERITREA","http://standards.iso.org/iso/17442",null,null,null,"JEP"]
[null,null,null,null,null,null,null,null,null,null,null,null,null,null,null,null,"ESTONIA","http://standards.iso.org/iso/17442",null,null,null,"JMD"]
[null,null,null,null,null,null,null,null,null,null,null,null,null,null,null,null,"ETHIOPIA","http://standards.iso.org/iso/17442",null,null,null,"JOD"]
[null,null,null,null,null,null,null,null,null,null,null,null,null,null,null,null,"FALKLAND ISLANDS (MALVINAS)","http://standards.iso.org/iso/17442",null,null,null,"JPY"]
[null,null,null,null,null,null,null,null,null,null,null,null,null,null,null,null,"FAROE ISLANDS","http://standards.iso.org/iso/17442",null,null,null,"KES"]
[null,null,null,null,null,null,null,null,null,null,null,null,null,null,null,null,"FIJI","http://standards.iso.org/iso/17442",null,null,null,"KGS"]
[null,null,null,null,null,null,null,null,null,null,null,null,null,null,null,null,"FINLAND","http://standards.iso.org/iso/17442",null,null,null,"KHR"]
[null,null,null,null,null,null,null,null,null,null,null,null,null,null,null,null,"FRANCE","http://standards.iso.org/iso/17442",null,null,null,"KMF"]
[null,null,null,null,null,null,null,null,null,null,null,null,null,null,null,null,"FRENCH GUIANA","http://standards.iso.org/iso/17442",null,null,null,"KPW"]
[null,null,null,null,null,null,null,null,null,null,null,null,null,null,null,null,"FRENCH POLYNESIA","http://standards.iso.org/iso/17442",null,null,null,"KRW"]
[null,null,null,null,null,null,null,null,null,null,null,null,null,null,null,null,"FRENCH SOUTHERN TERRITORIES","http://standards.iso.org/iso/17442",null,null,null,"KWD"]
[null,null,null,null,null,null,null,null,null,null,null,null,null,null,null,null,"GABON","http://standards.iso.org/iso/17442",null,null,null,"KYD"]
[null,null,null,null,null,null,null,null,null,null,null,null,null,null,null,null,"GAMBIA","http://standards.iso.org/iso/17442",null,null,null,"KZT"]
[null,null,null,null,null,null,null,null,null,null,null,null,null,null,null,null,"GEORGIA","http://standards.iso.org/iso/17442",null,null,null,"LAK"]
[null,null,null,null,null,null,null,null,null,null,null,null,null,null,null,null,"GERMANY","http://standards.iso.org/iso/17442",null,null,null,"LBP"]
[null,null,null,null,null,null,null,null,null,null,null,null,null,null,null,null,"GHANA","http://standards.iso.org/iso/17442",null,null,null,"LKR"]
[null,null,null,null,null,null,null,null,null,null,null,null,null,null,null,null,"GIBRALTAR","http://standards.iso.org/iso/17442",null,null,null,"LRD"]
[null,null,null,null,null,null,null,null,null,null,null,null,null,null,null,null,"GREECE","http://standards.iso.org/iso/17442",null,null,null,"LSL"]
[null,null,null,null,null,null,null,null,null,null,null,null,null,null,null,null,"GREENLAND","http://standards.iso.org/iso/17442",null,null,null,"LYD"]
[null,null,null,null,null,null,null,null,null,null,null,null,null,null,null,null,"GRENADA","http://standards.iso.org/iso/17442",null,null,null,"MAD"]
[null,null,null,null,null,null,null,null,null,null,null,null,null,null,null,null,"GUADELOUPE","http://standards.iso.org/iso/17442",null,null,null,"MDL"]
[null,null,null,null,null,null,null,null,null,null,null,null,null,null,null,null,"GUAM","http://standards.iso.org/iso/17442",null,null,null,"MGA"]
[null,null,null,null,null,null,null,null,null,null,null,null,null,null,null,null,"GUATEMALA","http://standards.iso.org/iso/17442",null,null,null,"MKD"]
[null,null,null,null,null,null,null,null,null,null,null,null,null,null,null,null,"GUERNSEY","http://standards.iso.org/iso/17442",null,null,null,"MMK"]
[null,null,null,null,null,null,null,null,null,null,null,null,null,null,null,null,"GUINEA","http://standards.iso.org/iso/17442",null,null,null,"MNT"]
[null,null,null,null,null,null,null,null,null,null,null,null,null,null,null,null,"GUINEA-BISSAU","http://standards.iso.org/iso/17442",null,null,null,"MOP"]
[null,null,null,null,null,null,null,null,null,null,null,null,null,null,null,null,"GUYANA","http://standards.iso.org/iso/17442",null,null,null,"MRO"]
[null,null,null,null,null,null,null,null,null,null,null,null,null,null,null,null,"HAITI","http://standards.iso.org/iso/17442",null,null,null,"MUR"]
[null,null,null,null,null,null,null,null,null,null,null,null,null,null,null,null,"HEARD ISLAND AND MCDONALD ISLANDS","http://standards.iso.org/iso/17442",null,null,null,"MVR"]
[null,null,null,null,null,null,null,null,null,null,null,null,null,null,null,null,"HOLY SEE (VATICAN CITY STATE)","http://standards.iso.org/iso/17442",null,null,null,"MWK"]
[null,null,null,null,null,null,null,null,null,null,null,null,null,null,null,null,"HONDURAS","http://standards.iso.org/iso/17442",null,null,null,"MXN"]
[null,null,null,null,null,null,null,null,null,null,null,null,null,null,null,null,"HONG KONG","http://standards.iso.org/iso/17442",null,null,null,"MYR"]
[null,null,null,null,null,null,null,null,null,null,null,null,null,null,null,null,"HUNGARY","http://standards.iso.org/iso/17442",null,null,null,"MZN"]
[null,null,null,null,null,null,null,null,null,null,null,null,null,null,null,null,"ICELAND","http://standards.iso.org/iso/17442",null,null,null,"NAD"]
[null,null,null,null,null,null,null,null,null,null,null,null,null,null,null,null,"INDIA","http://standards.iso.org/iso/17442",null,null,null,"NGN"]
[null,null,null,null,null,null,null,null,null,null,null,null,null,null,null,null,"INDONESIA","http://standards.iso.org/iso/17442",null,null,null,"NIO"]
[null,null,null,null,null,null,null,null,null,null,null,null,null,null,null,null,"IRAN, ISLAMIC REPUBLIC OF","http://standards.iso.org/iso/17442",null,null,null,"NOK"]
[null,null,null,null,null,null,null,null,null,null,null,null,null,null,null,null,"IRAQ","http://standards.iso.org/iso/17442",null,null,null,"NPR"]
[null,null,null,null,null,null,null,null,null,null,null,null,null,null,null,null,"IRELAND","http://standards.iso.org/iso/17442",null,null,null,"NZD"]
[null,null,null,null,null,null,null,null,null,null,null,null,null,null,null,null,"ISLE OF MAN","http://standards.iso.org/iso/17442",null,null,null,"OMR"]
[null,null,null,null,null,null,null,null,null,null,null,null,null,null,null,null,"ISRAEL","http://standards.iso.org/iso/17442",null,null,null,"PAB"]
[null,null,null,null,null,null,null,null,null,null,null,null,null,null,null,null,"ITALY","http://standards.iso.org/iso/17442",null,null,null,"PEN"]
[null,null,null,null,null,null,null,null,null,null,null,null,null,null,null,null,"JAMAICA","http://standards.iso.org/iso/17442",null,null,null,"PGK"]
[null,null,null,null,null,null,null,null,null,null,null,null,null,null,null,null,"JAPAN","http://standards.iso.org/iso/17442",null,null,null,"PHP"]
[null,null,null,null,null,null,null,null,null,null,null,null,null,null,null,null,"JERSEY","http://standards.iso.org/iso/17442",null,null,null,"PKR"]
[null,null,null,null,null,null,null,null,null,null,null,null,null,null,null,null,"JORDAN","http://standards.iso.org/iso/17442",null,null,null,"PLN"]
[null,null,null,null,null,null,null,null,null,null,null,null,null,null,null,null,"KAZAKHSTAN","http://standards.iso.org/iso/17442",null,null,null,"PYG"]
[null,null,null,null,null,null,null,null,null,null,null,null,null,null,null,null,"KENYA","http://standards.iso.org/iso/17442",null,null,null,"QAR"]
[null,null,null,null,null,null,null,null,null,null,null,null,null,null,null,null,"KIRIBATI","http://standards.iso.org/iso/17442",null,null,null,"RON"]
[null,null,null,null,null,null,null,null,null,null,null,null,null,null,null,null,"KOREA, DEMOCRATIC PEOPLE'S REPUBLIC OF","http://standards.iso.org/iso/17442",null,null,null,"RSD"]
[null,null,null,null,null,null,null,null,null,null,null,null,null,null,null,null,"KOREA, REPUBLIC OF","http://standards.iso.org/iso/17442",null,null,null,"RUB"]
[null,null,null,null,null,null,null,null,null,null,null,null,null,null,null,null,"KUWAIT","http://standards.iso.org/iso/17442",null,null,null,"RWF"]
[null,null,null,null,null,null,null,null,null,null,null,null,null,null,null,null,"KYRGYZSTAN","http://standards.iso.org/iso/17442",null,null,null,"SAR"]
[null,null,null,null,null,null,null,null,null,null,null,null,null,null,null,null,"LAO PEOPLE'S DEMOCRATIC REPUBLIC","http://standards.iso.org/iso/17442",null,null,null,"SBD"]
[null,null,null,null,null,null,null,null,null,null,null,null,null,null,null,null,"LATVIA","http://standards.iso.org/iso/17442",null,null,null,"SCR"]
[null,null,null,null,null,null,null,null,null,null,null,null,null,null,null,null,"LEBANON","http://standards.iso.org/iso/17442",null,null,null,"SDG"]
[null,null,null,null,null,null,null,null,null,null,null,null,null,null,null,null,"LESOTHO","http://standards.iso.org/iso/17442",null,null,null,"SEK"]
[null,null,null,null,null,null,null,null,null,null,null,null,null,null,null,null,"LIBERIA","http://standards.iso.org/iso/17442",null,null,null,"SGD"]
[null,null,null,null,null,null,null,null,null,null,null,null,null,null,null,null,"LIBYA","http://standards.iso.org/iso/17442",null,null,null,"SHP"]
[null,null,null,null,null,null,null,null,null,null,null,null,null,null,null,null,"LIECHTENSTEIN","http://standards.iso.org/iso/17442",null,null,null,"SLL"]
[null,null,null,null,null,null,null,null,null,null,null,null,null,null,null,null,"LITHUANIA","http://standards.iso.org/iso/17442",null,null,null,"SOS"]
[null,null,null,null,null,null,null,null,null,null,null,null,null,null,null,null,"LUXEMBOURG","http://www.cssf.lu",null,null,null,"SPL"]
[null,null,null,null,null,null,null,null,null,null,null,null,null,null,null,null,"MACAO","http://standards.iso.org/iso/17442",null,null,null,"SRD"]
[null,null,null,null,null,null,null,null,null,null,null,null,null,null,null,null,"MACEDONIA, THE FORMER YUGOSLAV REPUBLIC OF","http://standards.iso.org/iso/17442",null,null,null,"STD"]
[null,null,null,null,null,null,null,null,null,null,null,null,null,null,null,null,"MADAGASCAR","http://standards.iso.org/iso/17442",null,null,null,"SVC"]
[null,null,null,null,null,null,null,null,null,null,null,null,null,null,null,null,"MALAWI","http://standards.iso.org/iso/17442",null,null,null,"SYP"]
[null,null,null,null,null,null,null,null,null,null,null,null,null,null,null,null,"MALAYSIA","http://standards.iso.org/iso/17442",null,null,null,"SZL"]
[null,null,null,null,null,null,null,null,null,null,null,null,null,null,null,null,"MALDIVES","http://standards.iso.org/iso/17442",null,null,null,"THB"]
[null,null,null,null,null,null,null,null,null,null,null,null,null,null,null,null,"MALI","http://standards.iso.org/iso/17442",null,null,null,"TJS"]
[null,null,null,null,null,null,null,null,null,null,null,null,null,null,null,null,"MALTA","http://standards.iso.org/iso/17442",null,null,null,"TMT"]
[null,null,null,null,null,null,null,null,null,null,null,null,null,null,null,null,"MARSHALL ISLANDS","http://standards.iso.org/iso/17442",null,null,null,"TND"]
[null,null,null,null,null,null,null,null,null,null,null,null,null,null,null,null,"MARTINIQUE","http://standards.iso.org/iso/17442",null,null,null,"TOP"]
[null,null,null,null,null,null,null,null,null,null,null,null,null,null,null,null,"MAURITANIA","http://standards.iso.org/iso/17442",null,null,null,"TRY"]
[null,null,null,null,null,null,null,null,null,null,null,null,null,null,null,null,"MAURITIUS","http://standards.iso.org/iso/17442",null,null,null,"TTD"]
[null,null,null,null,null,null,null,null,null,null,null,null,null,null,null,null,"MAYOTTE","http://standards.iso.org/iso/17442",null,null,null,"TVD"]
[null,null,null,null,null,null,null,null,null,null,null,null,null,null,null,null,"MEXICO","http://standards.iso.org/iso/17442",null,null,null,"TWD"]
[null,null,null,null,null,null,null,null,null,null,null,null,null,null,null,null,"MICRONESIA, FEDERATED STATES OF","http://standards.iso.org/iso/17442",null,null,null,"TZS"]
[null,null,null,null,null,null,null,null,null,null,null,null,null,null,null,null,"MOLDOVA, REPUBLIC OF","http://standards.iso.org/iso/17442",null,null,null,"UAH"]
[null,null,null,null,null,null,null,null,null,null,null,null,null,null,null,null,"MONACO","http://standards.iso.org/iso/17442",null,null,null,"UGX"]
[null,null,null,null,null,null,null,null,null,null,null,null,null,null,null,null,"MONGOLIA","http://standards.iso.org/iso/17442",null,null,null,"USD"]
[null,null,null,null,null,null,null,null,null,null,null,null,null,null,null,null,"MONTENEGRO","http://standards.iso.org/iso/17442",null,null,null,"UYU"]
[null,null,null,null,null,null,null,null,null,null,null,null,null,null,null,null,"MONTSERRAT","http://standards.iso.org/iso/17442",null,null,null,"UZS"]
[null,null,null,null,null,null,null,null,null,null,null,null,null,null,null,null,"MOROCCO","http://standards.iso.org/iso/17442",null,null,null,"VEF"]
[null,null,null,null,null,null,null,null,null,null,null,null,null,null,null,null,"MOZAMBIQUE","http://standards.iso.org/iso/17442",null,null,null,"VND"]
[null,null,null,null,null,null,null,null,null,null,null,null,null,null,null,null,"MYANMAR","http://standards.iso.org/iso/17442",null,null,null,"VUV"]
[null,null,null,null,null,null,null,null,null,null,null,null,null,null,null,null,"NAMIBIA","http://standards.iso.org/iso/17442",null,null,null,"WST"]
[null,null,null,null,null,null,null,null,null,null,null,null,null,null,null,null,"NAURU","http://standards.iso.org/iso/17442",null,null,null,"XAF"]
[null,null,null,null,null,null,null,null,null,null,null,null,null,null,null,null,"NEPAL","http://standards.iso.org/iso/17442",null,null,null,"XCD"]
[null,null,null,null,null,null,null,null,null,null,null,null,null,null,null,null,"NETHERLANDS","http://standards.iso.org/iso/17442",null,null,null,"XDR"]
[null,null,null,null,null,null,null,null,null,null,null,null,null,null,null,null,"NEW CALEDONIA","http://standards.iso.org/iso/17442",null,null,null,"XOF"]
[null,null,null,null,null,null,null,null,null,null,null,null,null,null,null,null,"NEW ZEALAND","http://standards.iso.org/iso/17442",null,null,null,"XPF"]
[null,null,null,null,null,null,null,null,null,null,null,null,null,null,null,null,"NICARAGUA","http://standards.iso.org/iso/17442",null,null,null,"YER"]
[null,null,null,null,null,null,null,null,null,null,null,null,null,null,null,null,"NIGER","http://standards.iso.org/iso/17442",null,null,null,"ZAR"]
[null,null,null,null,null,null,null,null,null,null,null,null,null,null,null,null,"NIGERIA","http://standards.iso.org/iso/17442",null,null,null,"ZMW"]
[null,null,null,null,null,null,null,null,null,null,null,null,null,null,null,null,"NIUE","http://standards.iso.org/iso/17442",null,null,null,"ZWD"]
[null,null,null,null,null,null,null,null,null,null,null,null,null,null,null,null,"NORFOLK ISLAND","http://standards.iso.org/iso/17442"]
[null,null,null,null,null,null,null,null,null,null,null,null,null,null,null,null,"NORTHERN MARIANA ISLANDS","http://standards.iso.org/iso/17442"]
[null,null,null,null,null,null,null,null,null,null,null,null,null,null,null,null,"NORWAY","SC"]
[null,null,null,null,null,null,null,null,null,null,null,null,null,null,null,null,"OMAN","http://standards.iso.org/iso/17442"]
[null,null,null,null,null,null,null,null,null,null,null,null,null,null,null,null,"PAKISTAN","http://standards.iso.org/iso/17442"]
[null,null,null,null,null,null,null,null,null,null,null,null,null,null,null,null,"PALAU","http://standards.iso.org/iso/17442"]
[null,null,null,null,null,null,null,null,null,null,null,null,null,null,null,null,"PALESTINIAN TERRITORY, OCCUPIED","http://standards.iso.org/iso/17442"]
[null,null,null,null,null,null,null,null,null,null,null,null,null,null,null,null,"PANAMA","http://standards.iso.org/iso/17442"]
[null,null,null,null,null,null,null,null,null,null,null,null,null,null,null,null,"PAPUA NEW GUINEA","http://standards.iso.org/iso/17442"]
[null,null,null,null,null,null,null,null,null,null,null,null,null,null,null,null,"PARAGUAY","http://standards.iso.org/iso/17442"]
[null,null,null,null,null,null,null,null,null,null,null,null,null,null,null,null,"PERU","http://standards.iso.org/iso/17442"]
[null,null,null,null,null,null,null,null,null,null,null,null,null,null,null,null,"PHILIPPINES","http://standards.iso.org/iso/17442"]
[null,null,null,null,null,null,null,null,null,null,null,null,null,null,null,null,"PITCAIRN","http://standards.iso.org/iso/17442"]
[null,null,null,null,null,null,null,null,null,null,null,null,null,null,null,null,"POLAND","http://standards.iso.org/iso/17442"]
[null,null,null,null,null,null,null,null,null,null,null,null,null,null,null,null,"PORTUGAL","http://standards.iso.org/iso/17442"]
[null,null,null,null,null,null,null,null,null,null,null,null,null,null,null,null,"PUERTO RICO","http://standards.iso.org/iso/17442"]
[null,null,null,null,null,null,null,null,null,null,null,null,null,null,null,null,"QATAR","http://standards.iso.org/iso/17442"]
[null,null,null,null,null,null,null,null,null,null,null,null,null,null,null,null,"RÉUNION","http://standards.iso.org/iso/17442"]
[null,null,null,null,null,null,null,null,null,null,null,null,null,null,null,null,"ROMANIA","http://standards.iso.org/iso/17442"]
[null,null,null,null,null,null,null,null,null,null,null,null,null,null,null,null,"RUSSIAN FEDERATION","http://standards.iso.org/iso/17442"]
[null,null,null,null,null,null,null,null,null,null,null,null,null,null,null,null,"RWANDA","http://standards.iso.org/iso/17442"]
[null,null,null,null,null,null,null,null,null,null,null,null,null,null,null,null,"SAINT BARTHÉLEMY","http://standards.iso.org/iso/17442"]
[null,null,null,null,null,null,null,null,null,null,null,null,null,null,null,null,"SAINT HELENA, ASCENSION AND TRISTAN DA CUNHA","http://standards.iso.org/iso/17442"]
[null,null,null,null,null,null,null,null,null,null,null,null,null,null,null,null,"SAINT KITTS AND NEVIS","http://standards.iso.org/iso/17442"]
[null,null,null,null,null,null,null,null,null,null,null,null,null,null,null,null,"SAINT LUCIA","http://standards.iso.org/iso/17442"]
[null,null,null,null,null,null,null,null,null,null,null,null,null,null,null,null,"SAINT MARTIN (FRENCH PART)","http://standards.iso.org/iso/17442"]
[null,null,null,null,null,null,null,null,null,null,null,null,null,null,null,null,"SAINT PIERRE AND MIQUELON","http://standards.iso.org/iso/17442"]
[null,null,null,null,null,null,null,null,null,null,null,null,null,null,null,null,"SAINT VINCENT AND THE GRENADINES","http://standards.iso.org/iso/17442"]
[null,null,null,null,null,null,null,null,null,null,null,null,null,null,null,null,"SAMOA","http://standards.iso.org/iso/17442"]
[null,null,null,null,null,null,null,null,null,null,null,null,null,null,null,null,"SAN MARINO","http://standards.iso.org/iso/17442"]
[null,null,null,null,null,null,null,null,null,null,null,null,null,null,null,null,"SAO TOME AND PRINCIPE","http://standards.iso.org/iso/17442"]
[null,null,null,null,null,null,null,null,null,null,null,null,null,null,null,null,"SAUDI ARABIA","http://standards.iso.org/iso/17442"]
[null,null,null,null,null,null,null,null,null,null,null,null,null,null,null,null,"SENEGAL","http://standards.iso.org/iso/17442"]
[null,null,null,null,null,null,null,null,null,null,null,null,null,null,null,null,"SERBIA","http://standards.iso.org/iso/17442"]
[null,null,null,null,null,null,null,null,null,null,null,null,null,null,null,null,"SEYCHELLES","http://standards.iso.org/iso/17442"]
[null,null,null,null,null,null,null,null,null,null,null,null,null,null,null,null,"SIERRA LEONE","http://standards.iso.org/iso/17442"]
[null,null,null,null,null,null,null,null,null,null,null,null,null,null,null,null,"SINGAPORE","http://standards.iso.org/iso/17442"]
[null,null,null,null,null,null,null,null,null,null,null,null,null,null,null,null,"SINT MAARTEN (DUTCH PART)","http://standards.iso.org/iso/17442"]
[null,null,null,null,null,null,null,null,null,null,null,null,null,null,null,null,"SLOVAKIA","http://standards.iso.org/iso/17442"]
[null,null,null,null,null,null,null,null,null,null,null,null,null,null,null,null,"SLOVENIA","http://standards.iso.org/iso/17442"]
[null,null,null,null,null,null,null,null,null,null,null,null,null,null,null,null,"SOLOMON ISLANDS","http://standards.iso.org/iso/17442"]
[null,null,null,null,null,null,null,null,null,null,null,null,null,null,null,null,"SOMALIA","http://standards.iso.org/iso/17442"]
[null,null,null,null,null,null,null,null,null,null,null,null,null,null,null,null,"SOUTH AFRICA","http://standards.iso.org/iso/17442"]
[null,null,null,null,null,null,null,null,null,null,null,null,null,null,null,null,"SOUTH GEORGIA AND THE SOUTH SANDWICH ISLANDS","http://standards.iso.org/iso/17442"]
[null,null,null,null,null,null,null,null,null,null,null,null,null,null,null,null,"SOUTH SUDAN","http://standards.iso.org/iso/17442"]
[null,null,null,null,null,null,null,null,null,null,null,null,null,null,null,null,"SPAIN","http://standards.iso.org/iso/17442"]
[null,null,null,null,null,null,null,null,null,null,null,null,null,null,null,null,"SRI LANKA","http://standards.iso.org/iso/17442"]
[null,null,null,null,null,null,null,null,null,null,null,null,null,null,null,null,"SUDAN","http://standards.iso.org/iso/17442"]
[null,null,null,null,null,null,null,null,null,null,null,null,null,null,null,null,"SURINAME","http://standards.iso.org/iso/17442"]
[null,null,null,null,null,null,null,null,null,null,null,null,null,null,null,null,"SVALBARD AND JAN MAYEN","http://standards.iso.org/iso/17442"]
[null,null,null,null,null,null,null,null,null,null,null,null,null,null,null,null,"SWAZILAND","http://standards.iso.org/iso/17442"]
[null,null,null,null,null,null,null,null,null,null,null,null,null,null,null,null,"SWEDEN","http://www.fi.se/instnr"]
[null,null,null,null,null,null,null,null,null,null,null,null,null,null,null,null,"SWITZERLAND","http://standards.iso.org/iso/17442"]
[null,null,null,null,null,null,null,null,null,null,null,null,null,null,null,null,"SYRIAN ARAB REPUBLIC","http://standards.iso.org/iso/17442"]
[null,null,null,null,null,null,null,null,null,null,null,null,null,null,null,null,"TAIWAN, PROVINCE OF CHINA","http://standards.iso.org/iso/17442"]
[null,null,null,null,null,null,null,null,null,null,null,null,null,null,null,null,"TAJIKISTAN","http://standards.iso.org/iso/17442"]
[null,null,null,null,null,null,null,null,null,null,null,null,null,null,null,null,"TANZANIA, UNITED REPUBLIC OF","http://standards.iso.org/iso/17442"]
[null,null,null,null,null,null,null,null,null,null,null,null,null,null,null,null,"THAILAND","http://standards.iso.org/iso/17442"]
[null,null,null,null,null,null,null,null,null,null,null,null,null,null,null,null,"TIMOR-LESTE","http://standards.iso.org/iso/17442"]
[null,null,null,null,null,null,null,null,null,null,null,null,null,null,null,null,"TOGO","http://standards.iso.org/iso/17442"]
[null,null,null,null,null,null,null,null,null,null,null,null,null,null,null,null,"TOKELAU","http://standards.iso.org/iso/17442"]
[null,null,null,null,null,null,null,null,null,null,null,null,null,null,null,null,"TONGA","http://standards.iso.org/iso/17442"]
[null,null,null,null,null,null,null,null,null,null,null,null,null,null,null,null,"TRINIDAD AND TOBAGO","http://standards.iso.org/iso/17442"]
[null,null,null,null,null,null,null,null,null,null,null,null,null,null,null,null,"TUNISIA","http://standards.iso.org/iso/17442"]
[null,null,null,null,null,null,null,null,null,null,null,null,null,null,null,null,"TURKEY","http://standards.iso.org/iso/17442"]
[null,null,null,null,null,null,null,null,null,null,null,null,null,null,null,null,"TURKMENISTAN","http://standards.iso.org/iso/17442"]
[null,null,null,null,null,null,null,null,null,null,null,null,null,null,null,null,"TURKS AND CAICOS ISLANDS","http://standards.iso.org/iso/17442"]
[null,null,null,null,null,null,null,null,null,null,null,null,null,null,null,null,"TUVALU","http://standards.iso.org/iso/17442"]
[null,null,null,null,null,null,null,null,null,null,null,null,null,null,null,null,"UGANDA","http://standards.iso.org/iso/17442"]
[null,null,null,null,null,null,null,null,null,null,null,null,null,null,null,null,"UKRAINE","http://standards.iso.org/iso/17442"]
[null,null,null,null,null,null,null,null,null,null,null,null,null,null,null,null,"UNITED ARAB EMIRATES","http://standards.iso.org/iso/17442"]
[null,null,null,null,null,null,null,null,null,null,null,null,null,null,null,null,"UNITED KINGDOM","http://standards.iso.org/iso/17442"]
[null,null,null,null,null,null,null,null,null,null,null,null,null,null,null,null,"UNITED STATES","http://standards.iso.org/iso/17442"]
[null,null,null,null,null,null,null,null,null,null,null,null,null,null,null,null,"UNITED STATES MINOR OUTLYING ISLANDS","http://standards.iso.org/iso/17442"]
[null,null,null,null,null,null,null,null,null,null,null,null,null,null,null,null,"URUGUAY","http://standards.iso.org/iso/17442"]
[null,null,null,null,null,null,null,null,null,null,null,null,null,null,null,null,"UZBEKISTAN","http://standards.iso.org/iso/17442"]
[null,null,null,null,null,null,null,null,null,null,null,null,null,null,null,null,"VANUATU","http://standards.iso.org/iso/17442"]
[null,null,null,null,null,null,null,null,null,null,null,null,null,null,null,null,"VENEZUELA, BOLIVARIAN REPUBLIC OF","http://standards.iso.org/iso/17442"]
[null,null,null,null,null,null,null,null,null,null,null,null,null,null,null,null,"VIET NAM","http://standards.iso.org/iso/17442"]
[null,null,null,null,null,null,null,null,null,null,null,null,null,null,null,null,"VIRGIN ISLANDS, BRITISH","http://standards.iso.org/iso/17442"]
[null,null,null,null,null,null,null,null,null,null,null,null,null,null,null,null,"VIRGIN ISLANDS, U.S.","http://standards.iso.org/iso/17442"]
[null,null,null,null,null,null,null,null,null,null,null,null,null,null,null,null,"WALLIS AND FUTUNA","http://standards.iso.org/iso/17442"]
[null,null,null,null,null,null,null,null,null,null,null,null,null,null,null,null,"WESTERN SAHARA","http://standards.iso.org/iso/17442"]
[null,null,null,null,null,null,null,null,null,null,null,null,null,null,null,null,"YEMEN","http://standards.iso.org/iso/17442"]
[null,null,null,null,null,null,null,null,null,null,null,null,null,null,null,null,"ZAMBIA","http://standards.iso.org/iso/17442"]
[null,null,null,null,null,null,null,null,null,null,null,null,null,null,null,null,"ZIMBABWE","http://standards.iso.org/iso/17442"]
[null,null,null,null,null,null,null,null,null,null,null,null,null,null,null,null,"ÅLAND ISLANDS","http://standards.iso.org/iso/17442"]
[null,null,null,null,null,null,null,null,null,null,null,null,null,null,null,null,"Other Countries","http://standards.iso.org/iso/17442"]

{"sheet":"XBRL Errors","index":1,"n_rows":1,"n_cols":2,"rows_kept":1,"cut":false,"hidden":false,"merged":[]}
["Timestamp","Error"]

{"sheet":"Index","index":2,"n_rows":17,"n_cols":5,"rows_kept":17,"cut":false,"hidden":false,"merged":[[2,1,2,14]]}
[]
[]
[null,"Index"]
[]
[null,"Template Code","Template Name","Reporting Status"]
[null,"T0","Tabel 0: Voorblad",null,{"$f":"IF($D$6=\"Reported\",\"@ForceFilingCode:true\",IF($D$6=\"Not Reported\",\"@ForceFilingCode:false\",\"\"))","v":""}]
[null,"T1A","Tabel 1A: Vereveningsbijdrage Zvw",null,{"$f":"IF($D$7=\"Reported\",\"@ForceFilingCode:true\",IF($D$7=\"Not Reported\",\"@ForceFilingCode:false\",\"\"))","v":""}]
[null,"T1B","Tabel 1B: Schade en technische voorziening basisverzekering",null,{"$f":"IF($D$8=\"Reported\",\"@ForceFilingCode:true\",IF($D$8=\"Not Reported\",\"@ForceFilingCode:false\",\"\"))","v":""}]
[null,"T1C","Tabel 1C: Schade en technische voorziening aanvullende verzekering",null,{"$f":"IF($D$9=\"Reported\",\"@ForceFilingCode:true\",IF($D$9=\"Not Reported\",\"@ForceFilingCode:false\",\"\"))","v":""}]
[null,"T1D","Tabel 1D: Verdiende premie basis en/of aanvullende verzekering",null,{"$f":"IF($D$10=\"Reported\",\"@ForceFilingCode:true\",IF($D$10=\"Not Reported\",\"@ForceFilingCode:false\",\"\"))","v":""}]
[null,"T1E","Tabel 1E: Aantal verzekerden basis en/of aanvullende verzekering",null,{"$f":"IF($D$11=\"Reported\",\"@ForceFilingCode:true\",IF($D$11=\"Not Reported\",\"@ForceFilingCode:false\",\"\"))","v":""}]
[null,"T2A","Tabel 2A: Winst- en verliesrekening levensverzekeraars (vennootschappelijk, grondslag BW)",null,{"$f":"IF($D$12=\"Reported\",\"@ForceFilingCode:true\",IF($D$12=\"Not Reported\",\"@ForceFilingCode:false\",\"\"))","v":""}]
[null,"T2C","Tabel 2C: Winst- en verliesrekening schadeverzekeraars (vennootschappelijk, grondslag BW)",null,{"$f":"IF($D$13=\"Reported\",\"@ForceFilingCode:true\",IF($D$13=\"Not Reported\",\"@ForceFilingCode:false\",\"\"))","v":""}]
[null,"T2E","Tabel 2E: Winst- en verliesrekening herverzekeraars (vennootschappelijk, grondslag BW)",null,{"$f":"IF($D$14=\"Reported\",\"@ForceFilingCode:true\",IF($D$14=\"Not Reported\",\"@ForceFilingCode:false\",\"\"))","v":""}]
[null,"T2G","Tabel 2G: Winst- en verliesrekening verzekeraars (vennootschappelijk, grondslag IFRS)",null,{"$f":"IF($D$15=\"Reported\",\"@ForceFilingCode:true\",IF($D$15=\"Not Reported\",\"@ForceFilingCode:false\",\"\"))","v":""}]
[null,"T3A","Tabel 3A: Concentratierisico Windstorm",null,{"$f":"IF($D$16=\"Reported\",\"@ForceFilingCode:true\",IF($D$16=\"Not Reported\",\"@ForceFilingCode:false\",\"\"))","v":""}]
[null,"T3B","Tabel 3B: Exposure Windstorm",null,{"$f":"IF($D$17=\"Reported\",\"@ForceFilingCode:true\",IF($D$17=\"Not Reported\",\"@ForceFilingCode:false\",\"\"))","v":""}]

{"sheet":"Show","index":3,"n_rows":26,"n_cols":3,"rows_kept":26,"cut":false,"hidden":true,"merged":[]}
["Sheet","Prefix","VNS-JR"]
["T0",{"$f":"IF(AND(HLOOKUP('General data'!$E$22,$C$1:$D$2,2,FALSE)=\"X\",Index!D6=\"Reported\"),\"/\",\"!\")","v":"!"},"X"]
["T1A",{"$f":"IF(AND(HLOOKUP('General data'!$E$22,$C$1:$D$3,3,FALSE)=\"X\",Index!D7=\"Reported\"),\"/\",\"!\")","v":"!"},"X"]
["T1B",{"$f":"IF(AND(HLOOKUP('General data'!$E$22,$C$1:$D$4,4,FALSE)=\"X\",Index!D8=\"Reported\"),\"/\",\"!\")","v":"!"},"X"]
["T1C",{"$f":"IF(AND(HLOOKUP('General data'!$E$22,$C$1:$D$5,5,FALSE)=\"X\",Index!D9=\"Reported\"),\"/\",\"!\")","v":"!"},"X"]
["T1D",{"$f":"IF(AND(HLOOKUP('General data'!$E$22,$C$1:$D$6,6,FALSE)=\"X\",Index!D10=\"Reported\"),\"/\",\"!\")","v":"!"},"X"]
["T1E",{"$f":"IF(AND(HLOOKUP('General data'!$E$22,$C$1:$D$7,7,FALSE)=\"X\",Index!D11=\"Reported\"),\"/\",\"!\")","v":"!"},"X"]
["T2A",{"$f":"IF(AND(HLOOKUP('General data'!$E$22,$C$1:$D$8,8,FALSE)=\"X\",Index!D12=\"Reported\"),\"/\",\"!\")","v":"!"},"X"]
["T2C",{"$f":"IF(AND(HLOOKUP('General data'!$E$22,$C$1:$D$9,9,FALSE)=\"X\",Index!D13=\"Reported\"),\"/\",\"!\")","v":"!"},"X"]
["T2E",{"$f":"IF(AND(HLOOKUP('General data'!$E$22,$C$1:$D$10,10,FALSE)=\"X\",Index!D14=\"Reported\"),\"/\",\"!\")","v":"!"},"X"]
["T2G",{"$f":"IF(AND(HLOOKUP('General data'!$E$22,$C$1:$D$11,11,FALSE)=\"X\",Index!D15=\"Reported\"),\"/\",\"!\")","v":"!"},"X"]
["T3A",{"$f":"IF(AND(HLOOKUP('General data'!$E$22,$C$1:$D$12,12,FALSE)=\"X\",Index!D16=\"Reported\"),\"/\",\"!\")","v":"!"},"X"]
["T3B",{"$f":"IF(AND(HLOOKUP('General data'!$E$22,$C$1:$D$13,13,FALSE)=\"X\",Index!D17=\"Reported\"),\"/\",\"!\")","v":"!"},"X"]
[]
[{"$f":"IF(Index!D6=\"Not Reported\",\"/T0 Rows{Z}@ForceFilingCode:false\",\"\")","v":""},{"$f":"IF(Index!D6=\"Not Reported\",\"//T0 Rows{Z}@ForceFilingCode:false\",\"\")","v":""}]
[{"$f":"IF(Index!D7=\"Not Reported\",\"/T1A Rows{Z}@ForceFilingCode:false\",\"\")","v":""},{"$f":"IF(Index!D7=\"Not Reported\",\"//T1A Rows{Z}@ForceFilingCode:false\",\"\")","v":""}]
[{"$f":"IF(Index!D8=\"Not Reported\",\"/T1B Rows{Z}@ForceFilingCode:false\",\"\")","v":""},{"$f":"IF(Index!D8=\"Not Reported\",\"//T1B Rows{Z}@ForceFilingCode:false\",\"\")","v":""}]
[{"$f":"IF(Index!D9=\"Not Reported\",\"/T1C Rows{Z}@ForceFilingCode:false\",\"\")","v":""},{"$f":"IF(Index!D9=\"Not Reported\",\"//T1C Rows{Z}@ForceFilingCode:false\",\"\")","v":""}]
[{"$f":"IF(Index!D10=\"Not Reported\",\"/T1D Rows{Z}@ForceFilingCode:false\",\"\")","v":""},{"$f":"IF(Index!D10=\"Not Reported\",\"//T1D Rows{Z}@ForceFilingCode:false\",\"\")","v":""}]
[{"$f":"IF(Index!D11=\"Not Reported\",\"/T1E Rows{Z}@ForceFilingCode:false\",\"\")","v":""},{"$f":"IF(Index!D11=\"Not Reported\",\"//T1E Rows{Z}@ForceFilingCode:false\",\"\")","v":""}]
[{"$f":"IF(Index!D12=\"Not Reported\",\"/T2A Rows{Z}@ForceFilingCode:false\",\"\")","v":""},{"$f":"IF(Index!D12=\"Not Reported\",\"//T2A Rows{Z}@ForceFilingCode:false\",\"\")","v":""}]
[{"$f":"IF(Index!D13=\"Not Reported\",\"/T2C Rows{Z}@ForceFilingCode:false\",\"\")","v":""},{"$f":"IF(Index!D13=\"Not Reported\",\"//T2C Rows{Z}@ForceFilingCode:false\",\"\")","v":""}]
[{"$f":"IF(Index!D14=\"Not Reported\",\"/T2E Rows{Z}@ForceFilingCode:false\",\"\")","v":""},{"$f":"IF(Index!D14=\"Not Reported\",\"//T2E Rows{Z}@ForceFilingCode:false\",\"\")","v":""}]
[{"$f":"IF(Index!D15=\"Not Reported\",\"/T2G Rows{Z}@ForceFilingCode:false\",\"\")","v":""},{"$f":"IF(Index!D15=\"Not Reported\",\"//T2G Rows{Z}@ForceFilingCode:false\",\"\")","v":""}]
[{"$f":"IF(Index!D16=\"Not Reported\",\"/T3A Rows{Z}@ForceFilingCode:false\",\"\")","v":""},{"$f":"IF(Index!D16=\"Not Reported\",\"//T3A Rows{Z}@ForceFilingCode:false\",\"\")","v":""}]
[{"$f":"IF(Index!D17=\"Not Reported\",\"/T3B Rows{Z}@ForceFilingCode:false\",\"\")","v":""},{"$f":"IF(Index!D17=\"Not Reported\",\"//T3B Rows{Z}@ForceFilingCode:false\",\"\")","v":""}]

{"sheet":"Hierarchies","index":4,"n_rows":5,"n_cols":3,"rows_kept":5,"cut":false,"hidden":true,"merged":[]}
["hier_dom011_001","hier_dom012_001","hier_dom001_001"]
["Not applicable / All or Total","Not applicable / All or Total","Yes"]
["BW","Life","No"]
["IFRS","Non-life"]
[null,"Reinsurance"]

{"sheet":"T0","index":5,"n_rows":18,"n_cols":9,"rows_kept":18,"cut":false,"hidden":true,"merged":[[1,1,1,14],[4,1,4,11],[8,3,9,3]]}
["Back to Index"]
[null,"Tabel groep 0: Voorblad"]
[]
[]
[null,"Tabel 0: Voorblad"]
[]
[]
[]
[null,null,null,"x-axis"]
[]
[null,null,null,"Keuzes"]
[null,null,null,"010",null,null,null,{"$f":"Show!$B$2&\"T0 Rows {\"&COLUMN($C$1)&\"}\"&Index!$E$6","v":"!T0 Rows {3}"},{"$f":"Show!$B$2&\"T0 Columns {\"&COLUMN($D$1)&\"}\"","v":"!T0 Columns {4}"}]
[null,"y-axis",""]
[null,"IFRS of BW","010"]
[null,"Leven/Schade/Herverzekeraar","020"]
[null,"Windstorm: Verleent u stormdekkingen? ja/nee","030"]
[null,"Werknemers: Gemiddeld aantal fte's in boekjaar (afronden op hele getallen)","040"]
[null,null,null,null,null,null,null,{"$f":"Show!$B$2&Show!$B$2&\"T0 Rows {\"&COLUMN($C$1)&\"}\"","v":"!!T0 Rows {3}"},{"$f":"Show!$B$2&Show!$B$2&\"T0 Columns {\"&COLUMN($D$1)&\"}\"","v":"!!T0 Columns {4}"}]

{"sheet":"T1A","index":6,"n_rows":34,"n_cols":41,"rows_kept":34,"cut":false,"hidden":true,"merged":[[1,1,1,14],[4,1,4,11],[8,3,9,35],[10,3,10,19],[10,20,10,35],[11,3,11,17],[11,18,12,18],[11,19,12,19],[11,20,11,34],[11,35,12,35]]}
["Back to Index"]
[null,"Tabel groep 1: Zorg"]
[]
[]
[null,"Tabel 1A: Vereveningsbijdrage Zvw"]
[]
[]
[]
[null,null,null,"x-axis"]
[]
[null,null,null,"Ontvangen Vereveningsbijdrage Zvw",null,null,null,null,null,null,null,null,null,null,null,null,null,null,null,null,"(Nog) Niet Ontvangen Vereveningsbijdrage Zvw"]
[null,null,null,"Ontwikkelingsjaar",null,null,null,null,null,null,null,null,null,null,null,null,null,null,"Huidig boekjaar","Totaal naar schadejaar","Ontwikkelingsjaar",null,null,null,null,null,null,null,null,null,null,null,null,null,null,"Ultimo huidig boekjaar"]
[null,null,null,1,2,3,4,5,6,7,8,9,10,11,12,13,14,15,null,null,1,2,3,4,5,6,7,8,9,10,11,12,13,14,15]
[null,null,null,"010","020","030","040","050","060","070","080","090","100","110","120","130","140","150","160","170","180","190","200","210","220","230","240","250","260","270","280","290","300","310","320","330",null,null,null,{"$f":"Show!$B$3&\"T1A Rows {\"&COLUMN($C$1)&\"}\"&Index!$E$7","v":"!T1A Rows {3}"},{"$f":"Show!$B$3&\"T1A Columns {\"&COLUMN($D$1)&\"}\"","v":"!T1A Columns {4}"}]
[null,"y-axis",""]
[null,"Schadejaar",""]
[null,"Ouder","010"]
[null,"N-14","020"]
[null,"N-13","030"]
[null,"N-12","040"]
[null,"N-11","050"]
[null,"N-10","060"]
[null,"N-9","070"]
[null,"N-8","080"]
[null,"N-7","090"]
[null,"N-6","100"]
[null,"N-5","110"]
[null,"N-4","120"]
[null,"N-3","130"]
[null,"N-2","140"]
[null,"N-1","150"]
[null,"N","160"]
[null,"Totaal","170"]
[null,null,null,null,null,null,null,null,null,null,null,null,null,null,null,null,null,null,null,null,null,null,null,null,null,null,null,null,null,null,null,null,null,null,null,null,null,null,null,{"$f":"Show!$B$3&Show!$B$3&\"T1A Rows {\"&COLUMN($C$1)&\"}\"","v":"!!T1A Rows {3}"},{"$f":"Show!$B$3&Show!$B$3&\"T1A Columns {\"&COLUMN($AJ$1)&\"}\"","v":"!!T1A Columns {36}"}]

{"sheet":"T1B","index":7,"n_rows":34,"n_cols":41,"rows_kept":34,"cut":false,"hidden":true,"merged":[[1,1,1,14],[4,1,4,11],[8,3,9,35],[10,3,10,19],[10,20,10,35],[11,3,11,17],[11,18,12,18],[11,19,12,19],[11,20,11,34],[11,35,12,35]]}
["Back to Index"]
[null,"Tabel groep 1: Zorg"]
[]
[]
[null,"Tabel 1B: Schade en technische voorziening basisverzekering"]
[]
[]
[]
[null,null,null,"x-axis"]
[]
[null,null,null,"Betaalde Schade Basisverzekering",null,null,null,null,null,null,null,null,null,null,null,null,null,null,null,null,"Technische Voorziening Schade Basisverzekering"]
[null,null,null,"Ontwikkelingsjaar",null,null,null,null,null,null,null,null,null,null,null,null,null,null,"Huidig boekjaar","Totaal naar schadejaar","Ontwikkelingsjaar",null,null,null,null,null,null,null,null,null,null,null,null,null,null,"Ultimo huidig boekjaar"]
[null,null,null,1,2,3,4,5,6,7,8,9,10,11,12,13,14,15,null,null,1,2,3,4,5,6,7,8,9,10,11,12,13,14,15]
[null,null,null,"010","020","030","040","050","060","070","080","090","100","110","120","130","140","150","160","170","180","190","200","210","220","230","240","250","260","270","280","290","300","310","320","330",null,null,null,{"$f":"Show!$B$4&\"T1B Rows {\"&COLUMN($C$1)&\"}\"&Index!$E$8","v":"!T1B Rows {3}"},{"$f":"Show!$B$4&\"T1B Columns {\"&COLUMN($D$1)&\"}\"","v":"!T1B Columns {4}"}]
[null,"y-axis",""]
[null,"Schadejaar",""]
[null,"Ouder","010"]
[null,"N-14","020"]
[null,"N-13","030"]
[null,"N-12","040"]
[null,"N-11","050"]
[null,"N-10","060"]
[null,"N-9","070"]
[null,"N-8","080"]
[null,"N-7","090"]
[null,"N-6","100"]
[null,"N-5","110"]
[null,"N-4","120"]
[null,"N-3","130"]
[null,"N-2","140"]
[null,"N-1","150"]
[null,"N","160"]
[null,"Totaal","170"]
[null,null,null,null,null,null,null,null,null,null,null,null,null,null,null,null,null,null,null,null,null,null,null,null,null,null,null,null,null,null,null,null,null,null,null,null,null,null,null,{"$f":"Show!$B$4&Show!$B$4&\"T1B Rows {\"&COLUMN($C$1)&\"}\"","v":"!!T1B Rows {3}"},{"$f":"Show!$B$4&Show!$B$4&\"T1B Columns {\"&COLUMN($AJ$1)&\"}\"","v":"!!T1B Columns {36}"}]

{"sheet":"T1C","index":8,"n_rows":34,"n_cols":41,"rows_kept":34,"cut":false,"hidden":true,"merged":[[1,1,1,14],[4,1,4,11],[8,3,9,35],[10,3,10,19],[10,20,10,35],[11,3,11,17],[11,18,12,18],[11,19,12,19],[11,20,11,34],[11,35,12,35]]}
["Back to Index"]
[null,"Tabel groep 1: Zorg"]
[]
[]
[null,"Tabel 1C: Schade en technische voorziening aanvullende verzekering"]
[]
[]
[]
[null,null,null,"x-axis"]
[]
[null,null,null,"Betaalde Schade Aanvullende verzekering",null,null,null,null,null,null,null,null,null,null,null,null,null,null,null,null,"Technische Voorziening Schade Aanvullende verzekering"]
[null,null,null,"Ontwikkelingsjaar",null,null,null,null,null,null,null,null,null,null,null,null,null,null,"Huidig boekjaar","Totaal naar schadejaar","Ontwikkelingsjaar",null,null,null,null,null,null,null,null,null,null,null,null,null,null,"Ultimo huidig boekjaar"]
[null,null,null,1,2,3,4,5,6,7,8,9,10,11,12,13,14,15,null,null,1,2,3,4,5,6,7,8,9,10,11,12,13,14,15]
[null,null,null,"010","020","030","040","050","060","070","080","090","100","110","120","130","140","150","160","170","180","190","200","210","220","230","240","250","260","270","280","290","300","310","320","330",null,null,null,{"$f":"Show!$B$5&\"T1C Rows {\"&COLUMN($C$1)&\"}\"&Index!$E$9","v":"!T1C Rows {3}"},{"$f":"Show!$B$5&\"T1C Columns {\"&COLUMN($D$1)&\"}\"","v":"!T1C Columns {4}"}]
[null,"y-axis",""]
[null,"Schadejaar",""]
[null,"Ouder","010"]
[null,"N-14","020"]
[null,"N-13","030"]
[null,"N-12","040"]
[null,"N-11","050"]
[null,"N-10","060"]
[null,"N-9","070"]
[null,"N-8","080"]
[null,"N-7","090"]
[null,"N-6","100"]
[null,"N-5","110"]
[null,"N-4","120"]
[null,"N-3","130"]
[null,"N-2","140"]
[null,"N-1","150"]
[null,"N","160"]
[null,"Totaal","170"]
[null,null,null,null,null,null,null,null,null,null,null,null,null,null,null,null,null,null,null,null,null,null,null,null,null,null,null,null,null,null,null,null,null,null,null,null,null,null,null,{"$f":"Show!$B$5&Show!$B$5&\"T1C Rows {\"&COLUMN($C$1)&\"}\"","v":"!!T1C Rows {3}"},{"$f":"Show!$B$5&Show!$B$5&\"T1C Columns {\"&COLUMN($AJ$1)&\"}\"","v":"!!T1C Columns {36}"}]

{"sheet":"T1D","index":9,"n_rows":31,"n_cols":10,"rows_kept":31,"cut":false,"hidden":true,"merged":[[1,1,1,14],[4,1,4,11],[8,3,9,4],[10,3,11,3],[10,4,11,4]]}
["Back to Index"]
[null,"Tabel groep 1: Zorg"]
[]
[]
[null,"Tabel 1D: Verdiende premie basis en/of aanvullende verzekering"]
[]
[]
[]
[null,null,null,"x-axis"]
[]
[null,null,null,"Verdiende Premie Basisverzekering","Verdiende Premie Aanvullende verzekering"]
[]
[null,null,null,"010","020",null,null,null,{"$f":"Show!$B$6&\"T1D Rows {\"&COLUMN($C$1)&\"}\"&Index!$E$10","v":"!T1D Rows {3}"},{"$f":"Show!$B$6&\"T1D Columns {\"&COLUMN($D$1)&\"}\"","v":"!T1D Columns {4}"}]
[null,"y-axis",""]
[null,"Schadejaar",""]
[null,"N-14","010"]
[null,"N-13","020"]
[null,"N-12","030"]
[null,"N-11","040"]
[null,"N-10","050"]
[null,"N-9","060"]
[null,"N-8","070"]
[null,"N-7","080"]
[null,"N-6","090"]
[null,"N-5","100"]
[null,"N-4","110"]
[null,"N-3","120"]
[null,"N-2","130"]
[null,"N-1","140"]
[null,"N","150"]
[null,null,null,null,null,null,null,null,{"$f":"Show!$B$6&Show!$B$6&\"T1D Rows {\"&COLUMN($C$1)&\"}\"","v":"!!T1D Rows {3}"},{"$f":"Show!$B$6&Show!$B$6&\"T1D Columns {\"&COLUMN($E$1)&\"}\"","v":"!!T1D Columns {5}"}]

{"sheet":"T1E","index":10,"n_rows":31,"n_cols":12,"rows_kept":31,"cut":false,"hidden":true,"merged":[[1,1,1,14],[4,1,4,11],[8,3,9,6],[10,3,10,4],[10,5,10,6]]}
["Back to Index"]
[null,"Tabel groep 1: Zorg"]
[]
[]
[null,"Tabel 1E: Aantal verzekerden basis en/of aanvullende verzekering"]
[]
[]
[]
[null,null,null,"x-axis"]
[]
[null,null,null,"Gemiddeld aantal verzekerden basisverzekering",null,"Gemiddeld aantal verzekerden aanvullende verzekering"]
[null,null,null,"Waarvan 18-","Waarvan 18+","Waarvan 18-","Waarvan 18+"]
[null,null,null,"020","030","050","060",null,null,null,{"$f":"Show!$B$7&\"T1E Rows {\"&COLUMN($C$1)&\"}\"&Index!$E$11","v":"!T1E Rows {3}"},{"$f":"Show!$B$7&\"T1E Columns {\"&COLUMN($D$1)&\"}\"","v":"!T1E Columns {4}"}]
[null,"y-axis",""]
[null,"Schadejaar",""]
[null,"N-14","010"]
[null,"N-13","020"]
[null,"N-12","030"]
[null,"N-11","040"]
[null,"N-10","050"]
[null,"N-9","060"]
[null,"N-8","070"]
[null,"N-7","080"]
[null,"N-6","090"]
[null,"N-5","100"]
[null,"N-4","110"]
[null,"N-3","120"]
[null,"N-2","130"]
[null,"N-1","140"]
[null,"N","150"]
[null,null,null,null,null,null,null,null,null,null,{"$f":"Show!$B$7&Show!$B$7&\"T1E Rows {\"&COLUMN($C$1)&\"}\"","v":"!!T1E Rows {3}"},{"$f":"Show!$B$7&Show!$B$7&\"T1E Columns {\"&COLUMN($G$1)&\"}\"","v":"!!T1E Columns {7}"}]

{"sheet":"T2A","index":11,"n_rows":76,"n_cols":10,"rows_kept":76,"cut":false,"hidden":true,"merged":[[1,1,1,14],[4,1,4,11],[8,3,9,4],[10,3,13,3],[10,4,13,4]]}
["Back to Index"]
[null,"Tabel groep 2: Winst- en verliesrekening"]
[]
[]
[null,"Tabel 2A: Winst- en verliesrekening levensverzekeraars (vennootschappelijk, grondslag BW)"]
[]
[]
[]
[null,null,null,"x-axis"]
[]
[null,null,null,"T","T-1"]
[]
[]
[]
[null,null,null,"010","020",null,null,null,{"$f":"Show!$B$8&\"T2A Rows {\"&COLUMN($C$1)&\"}\"&Index!$E$12","v":"!T2A Rows {3}"},{"$f":"Show!$B$8&\"T2A Columns {\"&COLUMN($D$1)&\"}\"","v":"!T2A Columns {4}"}]
[null,"y-axis",""]
[null,"Technische rekening",""]
[null,"Verdiende premies eigen rekening",""]
[null,"Brutopremies","010"]
[null,"Uitgaande herverzekeringspremies (-)","020"]
[null,"Wijziging technische voorziening niet-verdiende premies en lopende risico's eigen rekening (-)","030"]
[null,"Totaal verdiende premies eigen rekening","040"]
[null,"Opbrengsten uit beleggingen",""]
[null,"Opbrengsten uit deelnemingen","050"]
[null,"Opbrengsten uit andere beleggingen",""]
[null,"Terreinen en gebouwen","060"]
[null,"Overige beleggingen","070"]
[null,"Waardeveranderingen van beleggingen","080"]
[null,"Gerealiseerde winst op beleggingen","090"]
[null,"Totaal opbrengsten uit beleggingen","100"]
[null,"Niet-gerealiseerde winst op beleggingen","110"]
[null,"Overige technische baten eigen rekening","120"]
[null,"Uitkeringen eigen rekening",""]
[null,"Bruto","130"]
[null,"Aandeel herverzekeraars (-)","140"]
[null,"Eigen rekening","150"]
[null,"Wijziging voorziening voor te betalen uitkeringen",""]
[null,"Bruto","160"]
[null,"Aandeel herverzekeraars (-)","170"]
[null,"Eigen rekening","180"]
[null,"Wijziging technische voorzieningen eigen rekening",""]
[null,"Voorziening voor levensverzekeringen",""]
[null,"Bruto","190"]
[null,"Aandeel herverzekeraars (-)","200"]
[null,"Eigen rekening","210"]
[null,"Overige technische voorzieningen eigen rekening","220"]
[null,"Totaal wijziging technische voorziening eigen rekening","230"]
[null,"Winstdeling en kortingen","240"]
[null,"Bedrijfskosten",""]
[null,"Acquisitiekosten","250"]
[null,"Beheers- en personeelskosten, afschrijvingen bedrijfsmiddelen","260"]
[null,"Provisie en winstdeling ontvangen van herverzekeraars (-)","270"]
[null,"Totaal bedrijfskosten","280"]
[null,"Beleggingslasten",""]
[null,"Beheerskosten en rentelasten","290"]
[null,"Waardeveranderingen beleggingen","300"]
[null,"Gerealiseerd verlies op beleggingen","310"]
[null,"Totaal beleggingslasten","320"]
[null,"Niet-gerealiseerd verlies op beleggingen","330"]
[null,"Overige technische lasten eigen rekening","340"]
[null,"Aan niet-technische rekening toegerekende opbrengst uit beleggingen","350"]
[null,"Resultaat technische rekening","360"]
[null,"Niet technische rekening",""]
[null,"Resultaat technische rekening","370"]
[null,"Toegerekende opbrengst uit beleggingen overgeboekt van technische rekening","380"]
[null,"Andere baten","390"]
[null,"Andere lasten","400"]
[null,"Resultaat uit gewone bedrijfsuitoefening voor belastingen","410"]
[null,"Belastingen resultaat uit gewone bedrijfsuitoefening","420"]
[null,"Resultaat uit gewone bedrijfsuitoefening na belastingen","430"]
[null,"Buitengewone baten","440"]
[null,"Buitengewone lasten (-)","450"]
[null,"Belastingen buitengewoon resultaat (-)","460"]
[null,"Buitengewoon resultaat na belastingen","470"]
[null,"Netto resultaat","480"]
[null,null,null,null,null,null,null,null,{"$f":"Show!$B$8&Show!$B$8&\"T2A Rows {\"&COLUMN($C$1)&\"}\"","v":"!!T2A Rows {3}"},{"$f":"Show!$B$8&Show!$B$8&\"T2A Columns {\"&COLUMN($E$1)&\"}\"","v":"!!T2A Columns {5}"}]

{"sheet":"T2C","index":12,"n_rows":81,"n_cols":10,"rows_kept":81,"cut":false,"hidden":true,"merged":[[1,1,1,14],[4,1,4,11],[8,3,9,4],[10,3,13,3],[10,4,13,4]]}
["Back to Index"]
[null,"Tabel groep 2: Winst- en verliesrekening"]
[]
[]
[null,"Tabel 2C: Winst- en verliesrekening schadeverzekeraars (vennootschappelijk, grondslag BW)"]
[]
[]
[]
[null,null,null,"x-axis"]
[]
[null,null,null,"T","T-1"]
[]
[]
[]
[null,null,null,"010","020",null,null,null,{"$f":"Show!$B$9&\"T2C Rows {\"&COLUMN($C$1)&\"}\"&Index!$E$13","v":"!T2C Rows {3}"},{"$f":"Show!$B$9&\"T2C Columns {\"&COLUMN($D$1)&\"}\"","v":"!T2C Columns {4}"}]
[null,"y-axis",""]
[null,"Technische rekening",""]
[null,"Verdiende premies eigen rekening",""]
[null,"Brutopremies","010"]
[null,"Uitgaande herverzekeringspremies  (-)","020"]
[null,"Eigen rekening","030"]
[null,"Wijziging technische voorziening niet-verdiende premies en lopende risico's",""]
[null,"Bruto","040"]
[null,"Aandeel herverzekeraars (-)","050"]
[null,"Eigen rekening","060"]
[null,"Totaal verdiende premies eigen rekening","070"]
[null,"Aan de technische rekening schadeherverzekering toegerekende opbrengst van beleggingen","080"]
[null,"Overige technische baten eigen rekening","090"]
[null,"Schaden eigen rekening",""]
[null,"Schaden",""]
[null,"Bruto","100"]
[null,"Aandeel herverzekeraars (-)","110"]
[null,"Eigen rekening","120"]
[null,"Wijziging voorziening voor te betalen schaden",""]
[null,"Bruto","130"]
[null,"Aandeel herverzekeraars (-)","140"]
[null,"Eigen rekening","150"]
[null,"Geleden schaden eigen rekening","160"]
[null,"Wijziging overige technische voorzieningen",""]
[null,"Bruto","170"]
[null,"Aandeel herverzekeraars (-)","180"]
[null,"Eigen rekening","190"]
[null,"Winstdeling en kortingen","200"]
[null,"Bedrijfskosten",""]
[null,"Acquisitiekosten","210"]
[null,"Beheers- en personeelskosten, afschrijvingen bedrijfsmiddelen","220"]
[null,"Provisie en winstdeling ontvangen van herverzekeraars (-)","230"]
[null,"Bedrijfskosten","240"]
[null,"Overige technische lasten eigen rekening","250"]
[null,"Wijziging egalisatievoorziening eigen rekening","260"]
[null,"Resultaat technische rekening","270"]
[null,"Niet technische rekening",""]
[null,"Resultaat technische rekening","280"]
[null,"Opbrengsten uit beleggingen",""]
[null,"Opbrengsten uit deelnemingen","290"]
[null,"Opbrengsten uit andere beleggingen",""]
[null,"Terreinen en gebouwen","300"]
[null,"Overige beleggingen","310"]
[null,"Waardeveranderingen van beleggingen","320"]
[null,"Gerealiseerde winst op beleggingen","330"]
[null,"Opbrengsten uit beleggingen","340"]
[null,"Niet-gerealiseerde winst op beleggingen","350"]
[null,"Beleggingslasten",""]
[null,"Beheerskosten en rentelasten","360"]
[null,"Waardeveranderingen beleggingen","370"]
[null,"Gerealiseerd verlies op beleggingen","380"]
[null,"Beleggingslasten","390"]
[null,"Niet-gerealiseerd verlies op beleggingen","400"]
[null,"Aan technische rekening toegerekende opbrengst uit beleggingen","410"]
[null,"Andere baten","420"]
[null,"Andere lasten","430"]
[null,"Resultaat uit gewone bedrijfsuitoefening voor belastingen","440"]
[null,"Belastingen resultaat uit gewone bedrijfsuitoefening","450"]
[null,"Resultaat uit gewone bedrijfsuitoefening na belastingen","460"]
[null,"Buitengewoon resultaat na belastingen",""]
[null,"Buitengewone baten","470"]
[null,"Buitengewone lasten (-)","480"]
[null,"Belastingen buitengewoon resultaat (-)","490"]
[null,"Buitengewoon resultaat na belastingen","500"]
[null,"Netto resultaat","510"]
[null,null,null,null,null,null,null,null,{"$f":"Show!$B$9&Show!$B$9&\"T2C Rows {\"&COLUMN($C$1)&\"}\"","v":"!!T2C Rows {3}"},{"$f":"Show!$B$9&Show!$B$9&\"T2C Columns {\"&COLUMN($E$1)&\"}\"","v":"!!T2C Columns {5}"}]

{"sheet":"T2E","index":13,"n_rows":131,"n_cols":10,"rows_kept":131,"cut":false,"hidden":true,"merged":[[1,1,1,14],[4,1,4,11],[8,3,9,4],[10,3,13,3],[10,4,13,4]]}
["Back to Index"]
[null,"Tabel groep 2: Winst- en verliesrekening"]
[]
[]
[null,"Tabel 2E: Winst- en verliesrekening herverzekeraars (vennootschappelijk, grondslag BW)"]
[]
[]
[]
[null,null,null,"x-axis"]
[]
[null,null,null,"T","T-1"]
[]
[]
[]
[null,null,null,"010","020",null,null,null,{"$f":"Show!$B$10&\"T2E Rows {\"&COLUMN($C$1)&\"}\"&Index!$E$14","v":"!T2E Rows {3}"},{"$f":"Show!$B$10&\"T2E Columns {\"&COLUMN($D$1)&\"}\"","v":"!T2E Columns {4}"}]
[null,"y-axis",""]
[null,"Technische rekening  schadeherverzekering",""]
[null,"Verdiende premies eigen rekening",""]
[null,"Brutopremies","010"]
[null,"Uitgaande retrocessiepremies (-)","020"]
[null,"Eigen rekening","030"]
[null,"Wijziging technische voorziening niet-verdiende premies en lopende risico's",""]
[null,"Bruto","040"]
[null,"Retrocessiedeel (-)","050"]
[null,"Eigen rekening","060"]
[null,"Verdiende premies eigen rekening","070"]
[null,"Aan de technische rekening schadeherverzekering toegerekende opbrengst van beleggingen","080"]
[null,"Overige technische baten eigen rekening","090"]
[null,"Schaden eigen rekening",""]
[null,"Schaden",""]
[null,"Bruto","100"]
[null,"Retrocessiedeel (-)","110"]
[null,"Eigen rekening","120"]
[null,"Wijziging voorziening voor te betalen schaden",""]
[null,"Bruto","130"]
[null,"Retrocessiedeel (-)","140"]
[null,"Eigen rekening","150"]
[null,"Geleden schaden eigen rekening","160"]
[null,"Wijziging overige technische voorzieningen",""]
[null,"Bruto","170"]
[null,"Retrocessiedeel (-)","180"]
[null,"Eigen rekening","190"]
[null,"Winstdeling en kortingen","200"]
[null,"Bedrijfskosten",""]
[null,"Acquisitiekosten","210"]
[null,"Beheers- en personeelskosten, afschrijvingen bedrijfsmiddelen","220"]
[null,"Commissie betaald aan cedenten","230"]
[null,"Commissie en winstdeling ontvangen van cedenten (-)","240"]
[null,"Totaal bedrijfskosten","250"]
[null,"Overige technische lasten eigen rekening","260"]
[null,"Wijziging egalisatievoorziening eigen rekening, BW2.9","270"]
[null,"Resultaat technische rekening schadeherverzekering","280"]
[null,"Technische rekening levensherverzekering",""]
[null,"Verdiende premies eigen rekening",""]
[null,"Brutopremies","290"]
[null,"Uitgaande retrocessiepremies (-)","300"]
[null,"Wijziging technische voorziening niet-verdiende premies en lopende risico's eigen rekening (-)","310"]
[null,"Verdiende premies eigen rekening","320"]
[null,"Opbrengsten uit beleggingen",""]
[null,"Opbrengsten uit deelnemingen","330"]
[null,"Opbrengsten uit andere beleggingen",""]
[null,"Terreinen en gebouwen","340"]
[null,"Overige beleggingen","350"]
[null,"Waardeveranderingen van beleggingen","360"]
[null,"Gerealiseerde winst op beleggingen","370"]
[null,"Totaal opbrengsten uit beleggingen","380"]
[null,"Niet-gerealiseerde winst op beleggingen","390"]
[null,"Overige technische baten eigen rekening","400"]
[null,"Uitkeringen eigen rekening",""]
[null,"Bruto","410"]
[null,"Retrocessiedeel (-)","420"]
[null,"Eigen rekening","430"]
[null,"Wijziging voorziening voor te betalen uitkeringen",""]
[null,"Bruto","440"]
[null,"Retrocessiedeel (-)","450"]
[null,"Eigen rekening","460"]
[null,"Wijziging technische voorzieningen eigen rekening",""]
[null,"Voorziening voor geaccepteerde levensherverzekeringen",""]
[null,"Bruto","470"]
[null,"Retrocessiedeel (-)","480"]
[null,"Eigen rekening","490"]
[null,"Overige technische voorzieningen eigen rekening","500"]
[null,"Totaal wijziging technische voorziening eigen rekening","510"]
[null,"Winstdeling en kortingen","520"]
[null,"Bedrijfskosten",""]
[null,"Acquisitiekosten","530"]
[null,"Beheers- en personeelskosten, afschrijvingen bedrijfsmiddelen","540"]
[null,"Commissie betaald aan cedenten","550"]
[null,"Commissie en winstdeling ontvangen van cedenten (-)","560"]
[null,"Totaal bedrijfskosten","570"]
[null,"Beleggingslasten",""]
[null,"Beheerskosten en rentelasten","580"]
[null,"Waardeveranderingen beleggingen","590"]
[null,"Gerealiseerd verlies op beleggingen","600"]
[null,"Totaal beleggingslasten","610"]
[null,"Niet-gerealiseerd verlies op beleggingen","620"]
[null,"Overige technische lasten eigen rekening","630"]
[null,"Aan niet-technische rekening levensherverzekering toegerekende opbrengst uit beleggingen","640"]
[null,"Resultaat technische rekening levensherverzekering","650"]
[null,"Niet technische rekening",""]
[null,"Resultaat technische rekening schadeherverzekering","660"]
[null,"Resultaat technische rekening levensherverzekering","670"]
[null,"Toegerekende opbrengst uit beleggingen overgeboekt van de technische rekening levensherverzekering","680"]
[null,"Opbrengsten uit beleggingen schadeherverzekering",""]
[null,"Opbrengsten uit deelnemingen","690"]
[null,"Opbrengsten uit andere beleggingen",""]
[null,"Terreinen en gebouwen","700"]
[null,"Overige beleggingen","710"]
[null,"Waardeveranderingen van beleggingen","720"]
[null,"Gerealiseerde winst op beleggingen","730"]
[null,"Totaal opbrengsten uit beleggingen","740"]
[null,"Niet-gerealiseerde winst op beleggingen schadeherverzekering","750"]
[null,"Beleggingslasten schadeherverzekering",""]
[null,"Beheerskosten en rentelasten","760"]
[null,"Waardeveranderingen beleggingen","770"]
[null,"Gerealiseerd verlies op beleggingen","780"]
[null,"Beleggingslasten","790"]
[null,"Niet-gerealiseerd verlies op beleggingen schadeherverzekering","800"]
[null,"Aan technische rekening schadeherverzekering toegerekende opbrengst uit beleggingen","810"]
[null,"Andere baten","820"]
[null,"Andere lasten","830"]
[null,"Resultaat uit gewone bedrijfsuitoefening voor belastingen","840"]
[null,"Belastingen resultaat uit gewone bedrijfsuitoefening","850"]
[null,"Resultaat uit gewone bedrijfsuitoefening na belastingen","860"]
[null,"Buitengewoon resultaat na belastingen",""]
[null,"Buitengewone baten","870"]
[null,"Buitengewone lasten (-)","880"]
[null,"Belastingen buitengewoon resultaat (-)","890"]
[null,"Buitengewoon resultaat na belastingen","900"]
[null,"Netto resultaat","910"]
[null,null,null,null,null,null,null,null,{"$f":"Show!$B$10&Show!$B$10&\"T2E Rows {\"&COLUMN($C$1)&\"}\"","v":"!!T2E Rows {3}"},{"$f":"Show!$B$10&Show!$B$10&\"T2E Columns {\"&COLUMN($E$1)&\"}\"","v":"!!T2E Columns {5}"}]

{"sheet":"T2G","index":14,"n_rows":43,"n_cols":10,"rows_kept":43,"cut":false,"hidden":true,"merged":[[1,1,1,14],[4,1,4,11],[8,3,9,4]]}
["Back to Index"]
[null,"Tabel groep 2: Winst- en verliesrekening"]
[]
[]
[null,"Tabel 2G: Winst- en verliesrekening verzekeraars (vennootschappelijk, grondslag IFRS)"]
[]
[]
[]
[null,null,null,"x-axis"]
[]
[null,null,null,"T","T-1"]
[null,null,null,"010","020",null,null,null,{"$f":"Show!$B$11&\"T2G Rows {\"&COLUMN($C$1)&\"}\"&Index!$E$15","v":"!T2G Rows {3}"},{"$f":"Show!$B$11&\"T2G Columns {\"&COLUMN($D$1)&\"}\"","v":"!T2G Columns {4}"}]
[null,"y-axis",""]
[null,"Verzekeringsopbrengsten","011"]
[null,"Lasten uit hoofde van verzekeringsdiensten","021"]
[null,"Verzekeringsdienstenresultaat","031"]
[null,"Toerekening van betaalde herverzekeringspremies","041"]
[null,"De op de herverzekeraar verhaalde bedragen voor ontstane claims","051"]
[null,"Netto resultaat gehouden herverzekeringscontracten","061"]
[null,"Netto verzekeringsdienstenresultaat","071"]
[null,"Renteopbrengsten bepaald middels de effectieve rente methode","081"]
[null,"Overige renteopbrengsten en vergelijkbare opbrengsten","091"]
[null,"Netto winst of verlies door  veranderingen in de reële waarde van financiële activa gewaardeerd tegen reële waarde met verwerking van waardeveranderingen in winst of verlies","101"]
[null,"Netto winst of verlies door veranderingen in de reële waarde bij overdracht van financiële activa gewaardeerd tegen reële waarde met verwerking van waardeveranderingen in de overige onderdelen van het totaalresultaat","111"]
[null,"Bijzondere waardervermindering voor te verwachten kredietverliezen van financiële activa","121"]
[null,"Opbrengsten overige beleggingen","131"]
[null,"Netto wisselkoers kosten/inkomsten","141"]
[null,"Investeringsresultaat","151"]
[null,"Verzekeringsfinancieringslasten van uitgegeven verzekeringscontracten","161"]
[null,"Herverzekeringsfinancieringsbaten van gehouden herverzekeringscontracten","171"]
[null,"Netto verzekeringsfinancieringsresultaat","181"]
[null,"Beheers- en personeelskosten, afschrijvingen bedrijfsmiddelen","220"]
[null,"Opbrengsten uit deelnemingen","290"]
[null,"Opbrengsten van eigen Terreinen en gebouwen","300"]
[null,"Beheerskosten en rentelasten","360"]
[null,"Andere baten","420"]
[null,"Andere lasten","430"]
[null,"Resultaat uit gewone bedrijfsuitoefening voor belastingen","440"]
[null,"Belastingen resultaat uit gewone bedrijfsuitoefening","450"]
[null,"Resultaat uit gewone bedrijfsuitoefening na belastingen","460"]
[null,"Resultaat na belasting activiteiten voor verkoop","505"]
[null,"Netto resultaat","510"]
[null,null,null,null,null,null,null,null,{"$f":"Show!$B$11&Show!$B$11&\"T2G Rows {\"&COLUMN($C$1)&\"}\"","v":"!!T2G Rows {3}"},{"$f":"Show!$B$11&Show!$B$11&\"T2G Columns {\"&COLUMN($E$1)&\"}\"","v":"!!T2G Columns {5}"}]

{"sheet":"T3A","index":15,"n_rows":29,"n_cols":20,"rows_kept":29,"cut":false,"hidden":true,"merged":[[1,1,1,14],[4,1,4,11],[8,3,9,14],[10,3,10,5],[10,6,10,8],[10,9,10,11],[10,12,10,14]]}
["Back to Index"]
[null,"Tabel groep 3: Windstorm"]
[]
[]
[null,"Tabel 3A: Concentratierisico Windstorm"]
[]
[]
[]
[null,null,null,"x-axis"]
[]
[null,null,null,"Burgerrisico's",null,null,"Commerciële risico's",null,null,"Industriële risico's",null,null,"Agrarische risico's"]
[null,null,null,"Aantal risico's","Verzekerde som","Verzekeringspremie","Aantal risico's","Verzekerde som","Verzekeringspremie","Aantal risico's","Verzekerde som","Verzekerings-premie","Aantal risico's","Verzekerde som","Verzekeringspremie"]
[null,null,null,"010","020","030","040","050","060","070","080","090","100","110","120",null,null,null,{"$f":"Show!$B$12&\"T3A Rows {\"&COLUMN($C$1)&\"}\"&Index!$E$16","v":"!T3A Rows {3}"},{"$f":"Show!$B$12&\"T3A Columns {\"&COLUMN($D$1)&\"}\"","v":"!T3A Columns {4}"}]
[null,"y-axis",""]
[null,"Provincie",""]
[null,"Groningen","010"]
[null,"Friesland","020"]
[null,"Drenthe","030"]
[null,"Overijssel","040"]
[null,"Gelderland","050"]
[null,"Flevoland","060"]
[null,"Utrecht","070"]
[null,"Noord-Holland","080"]
[null,"Zuid-Holland","090"]
[null,"Zeeland","100"]
[null,"Noord-Brabant","110"]
[null,"Limburg","120"]
[null,"Totaal Nederland","130"]
[null,null,null,null,null,null,null,null,null,null,null,null,null,null,null,null,null,null,{"$f":"Show!$B$12&Show!$B$12&\"T3A Rows {\"&COLUMN($C$1)&\"}\"","v":"!!T3A Rows {3}"},{"$f":"Show!$B$12&Show!$B$12&\"T3A Columns {\"&COLUMN($O$1)&\"}\"","v":"!!T3A Columns {15}"}]

{"sheet":"T3B","index":16,"n_rows":20,"n_cols":13,"rows_kept":20,"cut":false,"hidden":true,"merged":[[1,1,1,14],[4,1,4,11],[8,3,9,7],[10,3,10,7]]}
["Back to Index"]
[null,"Tabel groep 3: Windstorm"]
[]
[]
[null,"Tabel 3B: Exposure Windstorm"]
[]
[]
[]
[null,null,null,"x-axis"]
[]
[null,null,null,"Catastrofemodel"]
[null,null,null,"Eqecat","RMS","AIR","Overig","Intern"]
[null,null,null,"010","020","030","040","050",null,null,null,{"$f":"Show!$B$13&\"T3B Rows {\"&COLUMN($C$1)&\"}\"&Index!$E$17","v":"!T3B Rows {3}"},{"$f":"Show!$B$13&\"T3B Columns {\"&COLUMN($D$1)&\"}\"","v":"!T3B Columns {4}"}]
[null,"y-axis",""]
[null,"Terugkeerperiode",""]
[null,"100 jaar","010"]
[null,"150 jaar","020"]
[null,"200 jaar","030"]
[null,"250 jaar","040"]
[null,null,null,null,null,null,null,null,null,null,null,{"$f":"Show!$B$13&Show!$B$13&\"T3B Rows {\"&COLUMN($C$1)&\"}\"","v":"!!T3B Rows {3}"},{"$f":"Show!$B$13&Show!$B$13&\"T3B Columns {\"&COLUMN($H$1)&\"}\"","v":"!!T3B Columns {8}"}]